bitfinex/quotes_ETHUSD_20220309
["timestamp","ask_amount","ask_price","bid_price","bid_amount"]
[1646860175025,2.15955,2691.2,2690.2,1.09174878]
[1646860175324,2.15955,2691.2,2690.3,1.54352507]
[1646860176527,0.92973,2691.0,2690.3,1.54352507]
[1646860177322,2.15955,2691.2,2691.0,1.53963221]
[1646860177526,0.55033544,2691.3,2691.0,1.53963221]
[1646860177725,0.55033544,2691.3,2691.1,0.029168]
[1646860177923,0.55033544,2691.3,2691.1,0.043098]
[1646860178126,0.053849,2691.7,2691.3,5.5]
[1646860178328,3.10587242,2692.1,2691.4,9.0]
[1646860178693,0.94521489,2693.0,2692.0,0.9165113]
[1646860178884,0.01596489,2693.0,2692.4,0.023904]
[1646860179089,0.01596489,2693.0,2692.0,0.9281783]
[1646860179283,0.01596489,2693.0,2692.0,0.9165113]
[1646860179586,0.92919,2693.1,2692.0,0.9165113]
[1646860179587,0.92919,2693.1,2692.0,0.9554863]
[1646860179786,0.00399315,2692.6,2692.1,0.023904]
[1646860179984,0.00399315,2692.6,2692.0,0.9554863]
[1646860180185,0.00399315,2692.6,2692.2,0.022769]
[1646860180385,0.00399315,2692.6,2692.3,0.023904]
[1646860180583,0.00399315,2692.6,2692.5,0.047808]
[1646860180786,0.92921,2692.7,2692.3,0.019275]
[1646860180988,0.00399319,2692.5,2692.3,0.033654]
[1646860181286,0.00399319,2692.5,2692.0,0.023334]
[1646860181287,0.93320319,2692.5,2692.0,0.023334]
[1646860181488,0.93320319,2692.5,2692.1,0.035571]
[1646860181692,0.93320319,2692.5,2692.2,0.023904]
[1646860181887,0.92921,2692.5,2692.2,0.023904]
[1646860182086,0.92921,2692.5,2691.7,1.16556729]
[1646860182287,0.00387444,2692.4,2691.8,1.5427392]
[1646860182525,0.00387444,2692.4,2691.8,5.0427392]
[1646860182723,0.00387444,2692.4,2691.9,1.63052238]
[1646860182923,0.00387444,2692.4,2692.0,1.62289676]
[1646860183125,0.92912,2692.8,2692.1,1.6118121]
[1646860183323,0.92912,2692.8,2691.8,3.8681]
[1646860183324,0.00387449,2692.3,2692.2,1.5427392]
[1646860183525,1.85819,2693.1,2693.0,0.55881082]
[1646860184129,2.15819,2693.1,2693.0,0.55881082]
[1646860185730,2.15819,2693.1,2691.9,3.9665]
[1646860185731,5.5,2693.0,2692.4,0.00088788]
[1646860185931,0.9293,2692.8,2692.4,0.00088788]
[1646860186191,1.2293,2692.8,2692.4,0.00088788]
[1646860186479,0.441,2692.7,2692.4,0.00088788]
[1646860186678,0.441,2692.7,2692.0,1.54279955]
[1646860187179,0.441,2692.7,2692.4,0.0029596]
[1646860187180,1.85876,2692.5,2692.4,0.0029596]
[1646860187379,2.29976,2692.5,2692.4,0.0029596]
[1646860187978,2.29976,2692.5,2691.8,1.54284642]
[1646860188281,2.29976,2692.5,2692.3,0.00088789]
[1646860188282,17.04,2692.4,2692.3,0.00088789]
[1646860188480,17.04,2692.4,2691.7,0.00355244]
[1646860188481,12.16964,2692.2,2691.7,0.00355244]
[1646860188678,0.441,2692.1,2691.7,0.00355244]
[1646860188883,11.24,2691.9,2691.5,0.1857]
[1646860189088,0.741,2692.1,2691.0,1.53963221]
[1646860189089,0.92984,2691.6,2691.0,1.53963221]
[1646860189283,12.1699031,2691.4,2691.0,0.07139539]
[1646860189487,5.5,2691.2,2690.4,0.67628833]
[1646860189682,11.24,2691.0,2690.3,0.67628833]
[1646860189924,11.681,2690.9,2690.2,0.67628833]
[1646860190125,0.441,2690.8,2690.2,0.67628833]
[1646860190525,2.601,2690.8,2690.2,0.66812518]
[1646860190731,2.901,2690.8,2690.1,0.90155522]
[1646860191126,2.601,2690.8,2690.1,0.90155522]
[1646860191525,2.601,2690.8,2690.2,0.90155522]
[1646860191925,2.601,2690.8,2690.1,0.90155522]
[1646860192131,1.671,2690.8,2690.2,0.90155522]
[1646860192327,1.671,2690.8,2690.1,0.90155522]
[1646860193026,1.671,2690.8,2690.3,0.00355977]
[1646860193702,0.92987,2691.1,2690.6,0.0868645]
[1646860193703,0.1847,2691.1,2690.6,0.0868645]
[1646860193893,0.1845,2691.2,2690.6,0.0868645]
[1646860194490,0.1845,2691.2,2690.4,0.00355964]
[1646860194892,0.92968,2691.1,2690.4,0.00355964]
[1646860195191,0.1844,2691.0,2690.7,0.0881571]
[1646860195391,0.1844,2691.0,2690.7,0.09171641]
[1646860196391,1.11388,2691.1,2690.7,0.0881571]
[1646860196591,1.11388,2691.1,2690.7,0.09171635]
[1646860196592,0.1842,2691.1,2690.7,0.09171635]
[1646860197198,0.1841,2691.3,2690.7,0.09171635]
[1646860197425,0.1841,2691.3,2690.7,0.0881571]
[1646860197625,0.92966,2691.2,2690.7,0.0881571]
[1646860197827,0.92966,2691.2,2690.8,0.00320326]
[1646860198625,0.92966,2691.2,2690.7,0.0881571]
[1646860199029,0.92966,2691.2,2690.9,0.00320314]
[1646860199832,0.92966,2691.2,2690.2,0.0776617]
[1646860200233,0.92966,2691.2,2690.9,0.00320308]
[1646860200631,13.09436,2691.2,2690.9,0.00320308]
[1646860200829,13.09436,2691.2,2690.5,0.01281426]
[1646860200830,13.91066,2691.2,2690.5,0.01281426]
[1646860201029,16.74,2691.1,2690.5,0.01281426]
[1646860201278,0.92999,2690.8,2690.2,0.07664795]
[1646860201477,0.93001,2690.7,2690.5,0.0117788]
[1646860201876,1.85998,2690.6,2690.5,0.0117788]
[1646860202275,1.85998,2690.6,2690.1,0.07022146]
[1646860203279,1.85998,2690.6,2689.7,0.69011988]
[1646860203480,1.85998,2690.6,2689.8,0.070408]
[1646860203481,0.441,2690.5,2689.8,0.070408]
[1646860203678,3.5312782,2690.5,2689.8,0.070408]
[1646860203884,0.93008,2690.3,2689.6,0.0803792]
[1646860204088,0.441,2690.2,2689.6,0.0803792]
[1646860204285,1.86034,2690.1,2689.3,0.69011988]
[1646860204484,1.86034,2690.1,2689.4,0.06911122]
[1646860204485,2.60134,2690.1,2689.4,0.06911122]
[1646860204927,3.60134,2690.1,2689.6,0.00355276]
[1646860205233,1.02445724,2690.1,2689.6,0.00355276]
[1646860205629,0.02445724,2690.1,2689.6,0.00355276]
[1646860205827,0.02445724,2690.1,2689.5,0.07758395]
[1646860206028,1.86034,2690.2,2689.5,0.07758395]
[1646860206228,1.86034,2690.2,2689.7,0.00355256]
[1646860206428,0.3,2690.3,2689.7,0.00355256]
[1646860206631,1.85982,2690.6,2689.7,0.00355256]
[1646860207029,1.85982,2690.6,2690.5,0.0769071]
[1646860207232,1.85982,2690.6,2689.7,3.57435505]
[1646860207529,1.85982,2690.6,2690.0,0.00355216]
[1646860208129,2.15982,2690.6,2690.0,0.00355216]
[1646860208329,2.15982,2690.6,2690.3,0.08828904]
[1646860209383,0.9299,2690.5,2690.3,0.08828904]
[1646860209587,2.41240431,2691.0,2690.4,1.54358158]
[1646860209785,0.1857,2690.9,2690.5,0.06939694]
[1646860209984,2.41240431,2691.0,2690.5,0.06939694]
[1646860210187,2.41240431,2691.0,2690.6,1.54358158]
[1646860210388,2.41240431,2691.0,2690.7,0.08888724]
[1646860210785,2.41240431,2691.0,2690.3,0.08815929]
[1646860210986,2.41240431,2691.0,2690.4,1.54346727]
[1646860211187,2.41240431,2691.0,2690.7,0.00332935]
[1646860211387,0.92976,2690.8,2690.7,0.00332935]
[1646860211886,0.92976,2690.8,2690.5,0.08691899]
[1646860212086,0.92976,2690.8,2690.7,0.08525865]
[1646860212286,0.92976,2690.8,2690.6,0.00332941]
[1646860212930,0.92976,2690.8,2690.6,1.54681661]
[1646860213128,0.92976,2690.8,2690.7,0.08642598]
[1646860213328,3.71240431,2691.0,2690.6,0.00291206]
[1646860213329,1.55284431,2691.0,2690.6,0.00291206]
[1646860213527,0.55284431,2691.0,2690.8,0.09047191]
[1646860213730,0.55284431,2691.0,2690.6,0.0777411]
[1646860213930,0.55284431,2691.0,2690.7,1.54334184]
[1646860214129,0.55284431,2691.0,2690.8,1.54334184]
[1646860214330,0.55284431,2691.0,2690.5,0.07920148]
[1646860214331,0.55284431,2691.0,2690.9,1.54334184]
[1646860214632,1.48255431,2691.0,2690.7,0.0029119]
[1646860215433,1.48255431,2691.0,2690.7,1.61583016]
[1646860215633,1.48255431,2691.0,2690.8,0.08088581]
[1646860215829,1.48255431,2691.0,2690.7,0.0029119]
[1646860216681,1.48255431,2691.0,2690.4,1.54344981]
[1646860216876,1.48255431,2691.0,2690.5,1.54344981]
[1646860216877,1.85965,2690.9,2690.5,1.54344981]
[1646860217080,1.85965,2690.9,2690.7,0.00297294]
[1646860217883,1.85965,2690.9,2690.5,0.07570116]
[1646860218088,1.85965,2690.9,2690.7,0.00297299]
[1646860218282,3.2305734,2690.9,2690.7,0.00297299]
[1646860218681,4.2305734,2690.9,2690.7,0.00297299]
[1646860218884,3.30065,2690.9,2690.7,0.00297299]
[1646860219084,3.30065,2690.9,2690.5,0.07158268]
[1646860219485,3.30065,2690.9,2690.7,0.00297299]
[1646860219685,2.30065,2690.9,2690.7,0.00297299]
[1646860219930,3.30065,2690.9,2690.7,0.00297299]
[1646860220232,0.00181779,2690.8,2690.7,0.00297299]
[1646860220431,0.00181779,2690.8,2690.5,0.07158268]
[1646860220637,0.00181779,2690.8,2690.7,0.00296409]
[1646860220831,0.00181779,2690.8,2690.4,0.08827516]
[1646860221030,0.00181779,2690.8,2690.5,1.54354947]
[1646860221233,0.00181779,2690.8,2690.6,0.07144615]
[1646860221631,0.00181779,2690.8,2690.3,1.0036546]
[1646860221632,0.00181779,2690.8,2690.4,0.07869945]
[1646860221832,0.00181779,2690.8,2690.5,1.54351324]
[1646860222032,0.00181779,2690.8,2690.6,0.07848068]
[1646860222231,0.00181779,2690.8,2690.4,0.08484119]
[1646860222432,0.00181779,2690.8,2690.5,1.54350986]
[1646860222630,0.00181779,2690.8,2690.6,0.08076174]
[1646860222631,0.93158779,2690.8,2690.6,0.08076174]
[1646860222830,0.93158779,2690.8,2690.4,0.0892177]
[1646860223031,0.93158779,2690.8,2690.6,0.0719583]
[1646860223235,0.93158779,2690.8,2690.4,0.06995145]
[1646860223431,0.93158779,2690.8,2690.5,1.54346477]
[1646860223688,0.93158779,2690.8,2690.6,0.08479668]
[1646860223880,0.93158779,2690.8,2690.4,0.08275234]
[1646860224081,0.93158779,2690.8,2690.6,0.07793732]
[1646860224282,0.93158779,2690.8,2690.5,0.00354409]
[1646860224883,0.93158779,2690.8,2690.5,1.62441432]
[1646860225082,0.93158779,2690.8,2690.5,0.07739288]
[1646860225284,0.93158779,2690.8,2690.5,0.07825489]
[1646860225686,0.93158779,2690.8,2690.5,0.00086201]
[1646860225887,1.23158779,2690.8,2690.5,0.00086201]
[1646860226285,1.23158779,2690.8,2690.4,1.54359401]
[1646860226586,1.23158779,2690.8,2690.5,0.00086201]
[1646860227532,1.23158779,2690.8,2690.4,1.54359401]
[1646860227733,1.23158779,2690.8,2690.5,0.00086201]
[1646860228234,0.00181779,2690.8,2690.5,0.07711835]
[1646860228438,0.00181779,2690.8,2690.6,1.54359401]
[1646860228635,0.00181779,2690.8,2690.7,0.0829923]
[1646860229039,0.00181779,2690.8,2690.7,1.62658631]
[1646860229238,0.55284431,2691.0,2690.8,0.00363557]
[1646860229439,0.55284431,2691.0,2690.8,2.47127907]
[1646860229640,0.55284431,2691.0,2690.9,1.54359401]
[1646860229839,5.5,2690.9,2690.7,0.0829923]
[1646860230044,5.5,2690.9,2690.0,0.08993586]
[1646860230045,9.79874842,2690.9,2690.0,0.08993586]
[1646860230241,9.79874842,2690.9,2690.6,0.00335188]
[1646860230242,0.00181179,2690.7,2690.6,0.00335188]
[1646860230440,0.44281179,2690.7,2690.6,0.00335188]
[1646860230641,5.5,2690.6,2690.3,0.01340875]
[1646860230841,0.029168,2690.4,2690.3,0.01340875]
[1646860231045,0.011667,2690.5,2690.3,0.01340875]
[1646860231279,0.011667,2690.5,2690.1,1.03677603]
[1646860231679,0.011667,2690.5,2690.1,0.96061521]
[1646860231879,0.011667,2690.5,2690.2,0.0767019]
[1646860233481,0.011667,2690.5,2689.9,0.08565062]
[1646860233684,0.011667,2690.5,2689.7,0.08885361]
[1646860233884,0.011667,2690.5,2690.2,0.0035361]
[1646860234285,0.029168,2690.3,2690.2,0.0035361]
[1646860234583,0.959118,2690.3,2690.2,0.0035361]
[1646860234783,0.959118,2690.3,2689.7,0.08885361]
[1646860235032,0.029168,2690.0,2689.4,0.69011988]
[1646860235231,1.0609,2690.3,2689.7,0.01414707]
[1646860235232,0.029168,2689.8,2689.7,0.01414707]
[1646860236241,0.470168,2689.8,2689.7,0.01414707]
[1646860236437,0.52354727,2689.8,2689.6,0.00353689]
[1646860236638,1.86072,2689.7,2689.6,0.00353689]
[1646860236837,2.60172,2689.7,2689.6,0.00353689]
[1646860237236,3.60172,2689.7,2689.2,0.029884]
[1646860237442,0.029168,2689.3,2689.2,0.029884]
[1646860238345,2.345918,2689.3,2689.2,0.029884]
[1646860238542,2.645918,2689.3,2689.2,0.029884]
[1646860238985,3.645918,2689.3,2689.2,0.029884]
[1646860239784,3.830918,2689.3,2689.2,0.029884]
[1646860240486,7.330918,2689.3,2689.2,0.029884]
[1646860241298,7.145918,2689.3,2689.2,0.029884]
[1646860241787,3.645918,2689.3,2689.2,0.029884]
[1646860243334,2.37135,2689.3,2689.2,0.029884]
[1646860243534,1.953124,2689.3,2689.2,0.029884]
[1646860243733,0.945075,2689.3,2689.2,0.029884]
[1646860244739,1.245075,2689.3,2689.2,0.029884]
[1646860245334,0.945075,2689.3,2689.2,0.029884]
[1646860246988,0.93035,2689.3,2689.2,0.029884]
[1646860248488,0.937875,2689.3,2689.2,0.029884]
[1646860249291,0.16004067,2689.4,2689.2,0.029884]
[1646860249490,0.46004067,2689.4,2689.2,0.029884]
[1646860249690,0.16004067,2689.4,2689.2,0.029884]
[1646860249926,0.16004067,2689.4,2689.3,1.54440799]
[1646860250125,1.09037067,2689.4,2689.3,1.54440799]
[1646860252532,1.09037067,2689.4,2689.2,0.03341032]
[1646860253132,0.023865,2689.3,2689.2,0.03341032]
[1646860253535,0.023865,2689.3,2689.2,1.57783123]
[1646860253780,0.023865,2689.3,2689.2,0.03341032]
[1646860254580,0.023865,2689.3,2689.2,0.029884]
[1646860255081,0.464865,2689.3,2689.2,0.029884]
[1646860255281,0.764865,2689.3,2689.2,0.029884]
[1646860257926,0.441,2689.3,2689.2,0.029884]
[1646860258325,0.441,2689.3,2689.2,1.57428059]
[1646860258526,0.441,2689.3,2689.2,1.57427923]
[1646860258729,0.441,2689.3,2689.2,1.57429086]
[1646860259128,0.441,2689.3,2689.2,0.029884]
[1646860259329,0.454772,2689.3,2689.1,0.02652303]
[1646860259533,0.029168,2689.2,2689.1,0.02652303]
[1646860260429,0.029168,2689.2,2689.1,0.02334832]
[1646860261481,1.890128,2689.2,2689.1,0.04669664]
[1646860261681,2.190128,2689.2,2689.1,0.04669664]
[1646860261880,2.5,2689.1,2689.0,0.00316956]
[1646860262086,2.820617,2689.2,2689.0,1.58727171]
[1646860262281,3.820617,2689.2,2689.0,0.04261724]
[1646860262881,3.820617,2689.2,2689.0,0.03944768]
[1646860263383,1.86099,2689.1,2689.0,0.03944768]
[1646860263582,2.16099,2689.1,2689.0,0.03944768]
[1646860264186,2.16099,2689.1,2689.0,0.0426173]
[1646860265527,2.16099,2689.1,2689.0,0.03944768]
[1646860265727,2.16099,2689.1,2689.0,1.58413211]
[1646860266726,2.16099,2689.1,2689.0,0.03944768]
[1646860267528,2.16099,2689.1,2689.0,1.58408829]
[1646860268431,0.93047,2689.0,2688.9,0.04272011]
[1646860268686,0.959638,2689.0,2688.9,0.04272011]
[1646860268879,0.959638,2689.0,2688.9,0.0457844]
[1646860269080,0.93047,2689.0,2688.9,0.04284889]
[1646860269280,1.44392615,2689.1,2689.0,2.0]
[1646860269585,0.011667,2689.5,2689.1,0.0815739]
[1646860269586,1.49154784,2689.5,2689.1,0.0815739]
[1646860269784,0.56138784,2689.5,2689.2,0.08075128]
[1646860270180,0.56138784,2689.5,2689.3,0.93740324]
[1646860270381,0.93005,2689.6,2689.4,0.0822746]
[1646860271380,0.93005,2689.6,2689.4,0.08533837]
[1646860271582,0.93005,2689.6,2689.4,0.00306377]
[1646860272183,0.944389,2689.6,2688.9,0.12174121]
[1646860272433,0.944389,2689.6,2689.4,0.00318706]
[1646860273429,0.93005,2689.6,2688.9,0.12174121]
[1646860273635,0.9301976,2689.5,2689.4,0.00318706]
[1646860273833,0.93017,2689.5,2689.4,0.00318706]
[1646860274634,0.93017,2689.5,2689.0,0.07868418]
[1646860274833,0.93017,2689.5,2689.3,0.00318712]
[1646860275635,1.244631,2689.6,2689.3,0.00318712]
[1646860275835,0.944631,2689.6,2689.0,0.07868418]
[1646860276035,0.944631,2689.6,2689.3,0.00352658]
[1646860276680,0.944631,2689.6,2689.3,0.07730424]
[1646860277179,0.944631,2689.6,2689.3,0.07730417]
[1646860277979,0.944631,2689.6,2689.3,0.00352651]
[1646860278183,0.944631,2689.6,2689.1,0.07591852]
[1646860278579,0.944631,2689.6,2689.3,0.00352651]
[1646860279382,0.944631,2689.6,2689.1,0.7660384]
[1646860279581,0.944631,2689.6,2689.3,0.0035318]
[1646860280530,2.79101,2689.5,2689.2,0.08225708]
[1646860280730,2.79101,2689.5,2688.9,0.0397846]
[1646860280731,6.09268,2689.5,2688.9,0.0397846]
[1646860280930,1.890158,2689.3,2688.9,0.1183614]
[1646860281328,2.190158,2689.3,2688.9,0.1183614]
[1646860282031,0.93048,2689.2,2688.9,0.1183614]
[1646860282228,2.79156,2689.1,2688.9,0.1183614]
[1646860282429,3.09156,2689.1,2688.9,0.1183614]
[1646860282629,0.9305,2689.0,2688.9,0.0397846]
[1646860283329,0.9305,2689.0,2688.9,0.04331145]
[1646860284187,0.9305,2689.0,2688.9,0.0397846]
[1646860286691,0.9305,2689.0,2688.9,0.03127008]
[1646860286886,3.1457659,2689.0,2688.9,0.03127008]
[1646860287086,3.4457659,2689.0,2688.9,0.03127008]
[1646860287286,2.16116,2688.9,2688.8,0.0146088]
[1646860287730,2.16116,2688.9,2688.7,0.06608368]
[1646860288337,2.16116,2688.9,2688.8,1.54464997]
[1646860288936,2.16116,2688.9,2688.7,0.06608368]
[1646860289338,2.51353757,2688.9,2688.6,0.04631976]
[1646860289537,2.79181,2688.8,2688.6,0.04631976]
[1646860289939,3.79181,2688.8,2688.6,0.04631976]
[1646860290339,3.79364486,2688.8,2688.6,0.04631976]
[1646860291585,3.79364486,2688.8,2688.6,0.04983819]
[1646860291784,3.79364486,2688.8,2688.7,0.90155522]
[1646860291985,3.79364486,2688.8,2688.6,0.04983819]
[1646860292187,3.79364486,2688.8,2688.3,0.0084458]
[1646860292188,4.0,2688.6,2688.3,0.0084458]
[1646860292385,0.029168,2688.4,2688.3,0.0084458]
[1646860292586,0.470168,2688.4,2688.3,0.0084458]
[1646860292785,0.770168,2688.4,2688.3,0.0084458]
[1646860293391,4.0,2688.3,2688.1,0.04044616]
[1646860293584,4.0,2688.3,2688.1,0.05733776]
[1646860293585,5.111483,2688.3,2688.1,0.05733776]
[1646860293785,5.111483,2688.3,2688.0,0.04666316]
[1646860293786,0.93082,2688.2,2688.0,0.04666316]
[1646860293987,3.43542,2688.2,2688.0,0.1133518]
[1646860294384,4.43542,2688.2,2688.0,0.1133518]
[1646860296435,4.43542,2688.2,2688.0,0.11685638]
[1646860296635,0.93082,2688.2,2688.0,0.11685638]
[1646860297236,0.93082,2688.2,2688.0,0.19363123]
[1646860297436,0.93082,2688.2,2688.0,2.02043705]
[1646860297636,0.93082,2688.2,2688.0,1.25404686]
[1646860297838,0.93082,2688.2,2688.1,0.06995975]
[1646860298036,0.93082,2688.2,2688.1,0.13664839]
[1646860298694,0.93082,2688.2,2688.1,0.06668864]
[1646860300190,1.248112,2688.2,2688.1,0.06668864]
[1646860300785,1.23082,2688.2,2688.1,0.06668864]
[1646860302532,0.93082,2688.2,2688.1,0.06668864]
[1646860305238,0.93261442,2688.2,2688.1,0.06668864]
[1646860306880,0.93261442,2688.2,2688.1,0.06480481]
[1646860307481,0.93261442,2688.2,2688.1,0.05793301]
[1646860308890,0.93261442,2688.2,2688.1,1.60279262]
[1646860309485,3.07719643,2688.3,2688.1,1.60279262]
[1646860309686,3.07719643,2688.3,2688.2,1.61392371]
[1646860309942,3.07719643,2688.3,2688.2,1.54485961]
[1646860310143,3.07719643,2688.3,2688.2,1.57864281]
[1646860310742,3.07719643,2688.3,2688.2,0.98950781]
[1646860311143,2.07719643,2688.3,2688.2,0.98950781]
[1646860311343,3.07719643,2688.3,2688.2,0.98950781]
[1646860311546,2.07719643,2688.3,2688.2,0.98950781]
[1646860311743,3.07719643,2688.3,2688.2,0.98950781]
[1646860312043,2.07719643,2688.3,2688.2,0.98950781]
[1646860312242,3.07719643,2688.3,2688.2,0.98950781]
[1646860312442,2.07719643,2688.3,2688.2,0.98950781]
[1646860312644,1.93064,2688.4,2688.2,0.98950781]
[1646860312844,1.93064,2688.4,2688.2,0.0337832]
[1646860312845,0.93064,2688.4,2688.2,0.0337832]
[1646860313446,0.93064,2688.4,2688.2,0.03670594]
[1646860314286,0.93064,2688.4,2688.2,0.0337832]
[1646860314587,0.93064,2688.4,2688.2,0.03670594]
[1646860314789,0.943138,2688.4,2688.2,0.03670594]
[1646860315490,0.943138,2688.4,2688.2,0.0337832]
[1646860315789,0.943138,2688.4,2688.2,0.03670673]
[1646860316595,0.027392,2688.3,2688.2,0.03670673]
[1646860316794,0.027392,2688.3,2688.2,0.0337832]
[1646860316992,0.93064,2688.4,2688.2,0.03670673]
[1646860317631,0.91480984,2688.4,2688.2,0.03670673]
[1646860317829,0.91480984,2688.4,2688.2,0.0337832]
[1646860318429,0.91480984,2688.4,2688.2,1.03167712]
[1646860319034,0.91480984,2688.4,2688.2,1.02875359]
[1646860319239,0.93269384,2688.4,2688.2,0.0337832]
[1646860319439,0.029168,2688.3,2688.2,0.03670662]
[1646860319638,1.23269384,2688.4,2688.2,0.03670662]
[1646860320142,1.21480984,2688.4,2688.2,0.03670662]
[1646860320338,3.941,2688.3,2688.2,0.0337832]
[1646860320540,3.941,2688.3,2688.1,0.04166107]
[1646860320541,5.54332287,2688.2,2688.1,0.04166107]
[1646860320741,6.28432287,2688.2,2688.1,0.04166107]
[1646860320939,0.05333024,2688.0,2687.8,0.05953545]
[1646860321201,0.05333024,2688.0,2687.5,0.00179824]
[1646860321202,5.5,2687.8,2687.5,0.00179824]
[1646860321393,0.441,2687.7,2687.5,0.02469808]
[1646860321604,9.029168,2687.6,2687.4,0.03089832]
[1646860321791,9.029168,2687.6,2687.4,0.04259548]
[1646860321792,0.521496,2687.5,2687.4,0.04259548]
[1646860321987,5.5,2687.4,2687.2,0.00719296]
[1646860322191,0.470168,2687.3,2687.2,0.00719296]
[1646860322589,5.0,2687.2,2687.1,0.0083856]
[1646860322788,6.470168,2687.2,2687.1,0.02277152]
[1646860322987,1.5143098,2687.2,2687.1,0.02277152]
[1646860323191,3.5,2687.1,2686.6,0.0193682]
[1646860323388,0.9312,2687.0,2686.6,0.06491124]
[1646860323588,0.029168,2686.9,2686.6,0.06491124]
[1646860323792,1.86235,2686.8,2686.6,0.06491124]
[1646860324399,2.63047,2686.8,2686.6,0.06491124]
[1646860324599,2.617118,2686.8,2686.6,0.06491124]
[1646860324794,3.58795,2686.8,2686.6,0.06491124]
[1646860325033,0.029168,2686.7,2686.6,0.06491124]
[1646860325632,0.02484,2686.7,2686.6,0.06491124]
[1646860326134,0.013061,2686.7,2686.6,0.06491124]
[1646860326334,2.874017,2686.8,2686.6,0.06491124]
[1646860326534,1.874017,2686.8,2686.6,0.06491124]
[1646860326733,2.874017,2686.8,2686.6,0.06491124]
[1646860326938,1.884232,2686.8,2686.6,0.06491124]
[1646860327134,2.886493,2686.8,2686.6,0.06491124]
[1646860327334,2.071993,2686.8,2686.6,0.06491124]
[1646860327534,3.071993,2686.8,2686.6,0.06491124]
[1646860327735,2.071993,2686.8,2686.6,0.06835393]
[1646860327935,3.077018,2686.8,2686.6,0.06835393]
[1646860328135,3.04785,2686.8,2686.6,0.06835393]
[1646860328338,0.029168,2686.7,2686.6,0.06835393]
[1646860328539,3.059517,2686.8,2686.6,0.06835393]
[1646860328807,3.059517,2686.8,2685.8,0.12336804]
[1646860328808,2.7950016,2686.5,2685.8,0.12336804]
[1646860328999,1.86336,2686.3,2685.8,0.04692274]
[1646860329197,0.05749828,2686.0,2685.6,0.06804504]
[1646860329400,0.441,2685.9,2685.6,0.06804504]
[1646860329599,0.06469478,2685.8,2685.6,0.06804504]
[1646860329795,0.9318,2685.6,2685.4,0.08613352]
[1646860329996,3.28579358,2685.8,2685.7,0.6589592]
[1646860330202,6.43179,2685.6,2685.0,0.02265088]
[1646860330399,0.029168,2685.2,2685.0,0.02265088]
[1646860330597,2.06404,2685.2,2685.0,0.02265088]
[1646860330796,4.43195,2685.1,2684.9,0.0378099]
[1646860330997,3.522479,2685.1,2684.9,0.0378099]
[1646860331405,2.5,2685.0,2684.6,0.12986447]
[1646860331601,3.939597,2685.2,2684.6,0.12986447]
[1646860331602,3.92793,2685.2,2684.6,0.18517695]
[1646860331798,0.029168,2685.0,2684.6,0.18517695]
[1646860331998,0.93193,2685.0,2684.6,0.18517695]
[1646860332202,0.93192,2684.9,2684.6,0.12784992]
[1646860332831,0.976817,2684.9,2684.6,0.12784992]
[1646860333033,0.947955,2684.9,2684.6,0.12784992]
[1646860333233,0.93192,2684.9,2684.6,0.12784992]
[1646860333431,1.8638217,2684.9,2684.6,0.12784992]
[1646860334036,0.93192,2684.9,2684.6,0.12784992]
[1646860334842,2.7957561,2684.9,2684.6,0.12784992]
[1646860335037,4.65983,2685.1,2684.8,1.01955816]
[1646860335038,0.93162,2685.1,2684.8,1.01955816]
[1646860335238,1.86323,2685.4,2684.8,1.01955816]
[1646860335239,1.874897,2685.4,2684.8,1.01955816]
[1646860335437,1.86323,2685.4,2684.8,1.06489816]
[1646860335637,0.011667,2685.6,2684.8,1.06489816]
[1646860336485,0.93151,2685.5,2685.4,0.89159506]
[1646860337290,1.245917,2685.5,2684.8,0.04534]
[1646860337490,0.02431,2685.2,2684.8,0.04534]
[1646860337687,1.86343,2685.3,2684.8,0.04534]
[1646860337892,0.02431,2685.2,2684.8,0.04534]
[1646860338488,0.013514,2685.2,2684.8,0.04534]
[1646860339088,0.9317,2685.2,2685.1,1.20223022]
[1646860339290,0.011667,2685.6,2685.1,1.20223022]
[1646860339488,2.060907,2685.7,2685.1,1.20223022]
[1646860339690,1.86304,2685.7,2685.2,0.06897656]
[1646860340739,0.9315,2685.5,2685.2,0.06897656]
[1646860340942,0.9315,2685.5,2685.4,1.03076722]
[1646860341142,0.9315,2685.5,2685.4,1.10292382]
[1646860341544,1.86309,2686.0,2685.4,1.10292382]
[1646860341545,0.208234,2686.1,2685.4,1.00292382]
[1646860341742,0.01565513,2686.2,2685.5,0.07300269]
[1646860341943,6.4842,2686.5,2685.5,0.07300269]
[1646860341944,0.011667,2686.3,2685.5,0.07300269]
[1646860342341,0.00398813,2686.2,2685.5,0.07300269]
[1646860342543,0.00398813,2686.2,2686.1,0.87025763]
[1646860343141,0.942887,2686.3,2686.1,0.87025763]
[1646860343342,0.93122,2686.3,2686.1,0.87025763]
[1646860343697,0.00398876,2686.3,2686.1,0.87025763]
[1646860344287,1.0,2686.4,2686.1,0.87025763]
[1646860344488,0.00388836,2686.3,2686.1,0.87025763]
[1646860344689,0.00388836,2686.3,2685.5,0.07300269]
[1646860344690,0.93512836,2686.3,2685.5,0.07300269]
[1646860344890,0.95101036,2686.3,2685.5,0.07300269]
[1646860345089,0.02226033,2686.2,2685.5,0.07300269]
[1646860345692,0.02226033,2686.2,2685.6,1.23309505]
[1646860345693,0.00600352,2686.2,2685.6,1.23309505]
[1646860345991,0.00600352,2686.2,2686.1,1.09880816]
[1646860346294,0.00600352,2686.2,2686.1,1.1862119]
[1646860346695,0.00211533,2686.2,2686.1,1.1862119]
[1646860346892,0.00211533,2686.2,2685.6,0.08812534]
[1646860347093,0.00211533,2686.2,2685.3,0.3]
[1646860347094,0.01552333,2686.2,2685.3,0.3]
[1646860347292,0.01552333,2686.2,2685.3,0.0333319]
[1646860347536,0.01384833,2686.2,2685.3,0.0333319]
[1646860347735,0.01384833,2686.2,2685.4,0.3681]
[1646860347940,0.01384833,2686.2,2686.0,1.03300362]
[1646860348136,0.00565524,2686.2,2686.0,1.03300362]
[1646860349143,0.00211533,2686.2,2686.0,1.03300362]
[1646860349341,0.00565553,2686.2,2686.0,1.11232202]
[1646860349740,0.00565553,2686.2,2686.0,1.03300362]
[1646860350142,0.9312,2686.4,2686.1,0.08784462]
[1646860350344,1.3035901,2686.9,2685.9,0.3]
[1646860350544,1.3035901,2686.9,2686.6,1.09303081]
[1646860350945,1.3035901,2686.9,2685.9,0.0901079]
[1646860351197,1.3035901,2686.9,2686.0,1.54591745]